fUSD/lending_fUSD_20260611
["ID","MTS","AMOUNT","RATE_DAILY","PERIOD"]
[424793732,1781167841000,-639.0,0.00024,2]
[424793789,1781167842000,-150.0,0.00026069,2]
[424793794,1781167842000,-1553.39,0.00026076,2]
[424793792,1781167842000,-627.66,0.00026076,2]
[424793786,1781167842000,-1274.0,0.00026069,2]
[424793790,1781167842000,-419.0,0.00026069,2]
[424793791,1781167842000,-933.0,0.00026069,2]
[424793785,1781167842000,-3556.0,0.00026069,2]
[424793784,1781167842000,-550.0,0.00026,2]
[424793783,1781167842000,-100000.0,0.00025786,7]
[424793793,1781167842000,-642.87,0.00026076,2]
[424793787,1781167842000,-382.0,0.00026069,2]
[424793800,1781167842000,-261.52,0.00026179,2]
[424793806,1781167842000,-316.0,0.000268,2]
[424793795,1781167842000,-621.78829552,0.00026128,2]
[424793796,1781167842000,-151.0,0.00026128,2]
[424793801,1781167842000,-267.86,0.00026179,2]
[424793797,1781167842000,-775.4783256,0.00026128,2]
[424793799,1781167842000,-151.0,0.0002613,2]
[424793803,1781167842000,-303.8,0.00026296,2]
[424793798,1781167842000,-251.11897888,0.0002613,2]
[424793807,1781167842000,-200.0,0.000268,2]
[424793805,1781167842000,-3024.22645255,0.00026704,2]
[424793804,1781167842000,-260.4103811,0.00026678,2]
[424793788,1781167842000,-150.0,0.00026069,2]
[424793802,1781167842000,-647.25,0.00026179,2]
[424793781,1781167842000,-10308.5314,0.00025686,2]
[424793756,1781167842000,-588.0,0.00024848,2]
[424793779,1781167842000,-242.15909246,0.00025582,2]
[424793761,1781167842000,-299.0,0.00025,2]
[424793757,1781167842000,-186.0,0.00025,2]
[424793759,1781167842000,-651.0,0.00025,2]
[424793758,1781167842000,-209.0,0.00025,2]
[424793808,1781167842000,-309.0,0.000268,2]
[424793760,1781167842000,-166.0,0.00025,2]
[424793763,1781167842000,-317.0,0.00025,2]
[424793770,1781167842000,-154.12265568,0.00025034,2]
[424793766,1781167842000,-993.60186021,0.00025,2]
[424793765,1781167842000,-491.06,0.00025,7]
[424793772,1781167842000,-151.0,0.00025034,2]
[424793780,1781167842000,-151.0,0.00025582,2]
[424793762,1781167842000,-177.0,0.00025,2]
[424793769,1781167842000,-193.0,0.00025,2]
[424793767,1781167842000,-1527.0,0.00025,2]
[424793768,1781167842000,-329.0,0.00025,2]
[424793771,1781167842000,-233.5188934,0.00025034,2]
[424793774,1781167842000,-150.0,0.00025329,2]
[424793777,1781167842000,-439.24814526,0.00025329,2]
[424793773,1781167842000,-336.88575774,0.00025126,2]
[424793778,1781167842000,-176.47,0.00025357,2]
[424793775,1781167842000,-930.56969256,0.00025329,2]
[424793776,1781167842000,-150.0,0.00025329,2]
[424793782,1781167842000,-3024.22645255,0.00025717,2]
[424793764,1781167842000,-278.0,0.00025,2]
[424793812,1781167842000,-1145.73646957,0.00027045,2]
[424793818,1781167842000,-1500.0,0.00027397,2]
[424793809,1781167842000,-491.06,0.000269,7]
[424793849,1781167842000,-932.8,0.00027647,30]
[424793841,1781167842000,-241.02777308,0.00027456,7]
[424793852,1781167842000,-635.23,0.0002766,2]
[424793845,1781167842000,-500.0,0.000275,7]
[424793846,1781167842000,-150.0,0.000275,2]
[424793851,1781167842000,-733.7,0.0002766,30]
[424793848,1781167842000,-638.94,0.00027647,2]
[424793844,1781167842000,-243.25537304,0.00027456,7]
[424793843,1781167842000,-204.77689554,0.00027456,7]
[424793847,1781167842000,-1000.0,0.000275,2]
[424793810,1781167842000,-336.88575774,0.00026901,2]
[424793857,1781167842000,-1043.58,0.00027671,30]
[424793859,1781167842000,-681.74,0.00027671,30]
[424793855,1781167842000,-637.0,0.00027671,2]
[424793860,1781167842000,-223.75,0.00027671,13]
[424793861,1781167842000,-167.805,0.00027671,13]
[424793865,1781167842000,-635.23,0.00027742,7]
[424793862,1781167842000,-940.2,0.00027683,30]
[424793864,1781167842000,-638.94,0.0002773,7]
[424793863,1781167842000,-3024.22645255,0.0002769,2]
[424793866,1781167842000,-407.24794706,0.00027774,2]
[424793868,1781167842000,-635.23,0.00027825,30]
[424793867,1781167842000,-638.94,0.00027813,30]
[424793869,1781167842000,-190.7,0.0002787,2]
[424793870,1781167842000,-638.94,0.00027897,2]
[424793842,1781167842000,-186.23407523,0.00027456,7]
[424793850,1781167842000,-205.0,0.00027648,2]
[424793853,1781167842000,-874.78,0.0002766,30]
[424793840,1781167842000,-182.9714013,0.00027456,7]
[424793814,1781167842000,-637.0,0.00027137,2]
[424793837,1781167842000,-153.04762689,0.00027445,7]
[424793813,1781167842000,-1595.4323596,0.00027045,2]
[424793811,1781167842000,-170.74865145,0.00026984,2]
[424793816,1781167842000,-270.0455652,0.00027226,2]
[424793815,1781167842000,-2008.0,0.00027142,2]
[424793819,1781167842000,-282.5,0.00027397,2]
[424793817,1781167842000,-162.01362747,0.00027396,2]
[424793826,1781167842000,-152.80103534,0.00027444,2]
[424793820,1781167842000,-21380.54,0.00027397,10]
[424793824,1781167842000,-173.92920525,0.00027444,7]
[424793821,1781167842000,-17817.12,0.00027397,10]
[424793825,1781167842000,-151.82036364,0.00027444,7]
[424793823,1781167842000,-187.12224804,0.00027444,7]
[424793827,1781167842000,-202.35477692,0.00027444,7]
[424793839,1781167842000,-173.37857707,0.00027445,7]
[424793832,1781167842000,-215.93952788,0.00027445,7]
[424793834,1781167842000,-198.01299013,0.00027445,7]
[424793829,1781167842000,-158.39929802,0.00027444,7]
[424793830,1781167842000,-154.22367552,0.00027444,5]
[424793831,1781167842000,-217.94079116,0.00027445,7]
[424793836,1781167842000,-162.50611131,0.00027445,7]
[424793833,1781167842000,-178.77805632,0.00027445,7]
[424793828,1781167842000,-155.27088074,0.00027444,7]
[424793822,1781167842000,-251.53,0.000274,7]
[424793885,1781167843000,-203.85144979,0.00028085,7]
[424793884,1781167843000,-150.0,0.00028085,7]
[424793886,1781167843000,-701.0,0.0002814,30]
[424793889,1781167843000,-932.8,0.000282,2]
[424793893,1781167843000,-1043.58,0.00028218,2]
[424793897,1781167843000,-638.94,0.00028231,7]
[424793895,1781167843000,-167.805,0.00028219,13]
[424793896,1781167843000,-940.2,0.00028228,2]
[424793887,1781167843000,-638.94,0.00028147,2]
[424793891,1781167843000,-733.7,0.0002821,2]
[424793883,1781167843000,-635.23,0.00028073,30]
[424793871,1781167843000,-635.23,0.00027908,2]
[424793879,1781167843000,-635.23,0.00027991,7]
[424793877,1781167843000,-940.2,0.00027955,7]
[424793881,1781167843000,-491.06,0.00028,7]
[424793880,1781167843000,-600.0,0.00028,2]
[424793888,1781167843000,-635.23,0.00028156,2]
[424793878,1781167843000,-638.94,0.0002798,7]
[424793875,1781167843000,-1043.58,0.00027944,7]
[424793874,1781167843000,-874.78,0.00027935,7]
[424793872,1781167843000,-932.8,0.00027923,7]
[424793876,1781167843000,-681.74,0.00027944,7]
[424793873,1781167843000,-733.7,0.00027935,7]
[424793898,1781167843000,-635.23,0.00028239,7]
[424793882,1781167843000,-638.94,0.00028064,30]
[424793899,1781167843000,-303.8,0.00028267,2]
[424793890,1781167843000,-637.0,0.00028205,3]
[424793892,1781167843000,-874.78,0.0002821,2]
[424793894,1781167843000,-681.74,0.00028218,2]
[424793927,1781167843000,-508.51957401,0.0002867,2]
[424793926,1781167843000,-762.0722862,0.00019898,2]
[424793925,1781167843000,-0.3777138,0.00019898,2]
[424793919,1781167843000,-638.94,0.00028648,2]
[424793918,1781167843000,-635.23,0.0002857,30]
[424793917,1781167843000,-638.94,0.00028565,30]
[424793920,1781167843000,-635.23,0.00028653,2]
[424793922,1781167843000,-29931.658062,0.0002867,2]
[424793921,1781167843000,-350.0,0.00028658,11]
[424793916,1781167843000,-176.47,0.00028527,2]
[424793913,1781167843000,-1043.58,0.00028492,30]
[424793915,1781167843000,-940.2,0.000285,30]
[424793914,1781167843000,-681.74,0.00028492,30]
[424793909,1781167843000,-638.94,0.00028481,7]
[424793910,1781167843000,-733.7,0.00028485,30]
[424793902,1781167843000,-635.23,0.00028322,30]
[424793911,1781167843000,-874.78,0.00028485,30]
[424793912,1781167843000,-635.23,0.00028487,7]
[424793904,1781167843000,-638.94,0.00028398,2]
[424793901,1781167843000,-638.94,0.00028314,30]
[424793908,1781167843000,-209.95590477,0.00028476,30]
[424793900,1781167843000,-167.96472381,0.00028267,2]
[424793905,1781167843000,-95028.6925624,0.00028399,2]
[424793906,1781167843000,-635.23,0.00028405,2]
[424793907,1781167843000,-932.8,0.00028476,30]
[424793903,1781167843000,-349.92650795,0.00028392,2]
[424793936,1781167844000,-260.12178795,0.00022353,2]
[424793929,1781167844000,-762.45,0.00019898,2]
[424793930,1781167844000,-762.45,0.00019898,2]
[424793931,1781167844000,-762.45,0.00019898,2]
[424793932,1781167844000,-762.45,0.00019898,2]
[424793934,1781167844000,-762.45,0.00019898,2]
[424793938,1781167844000,-2031.45852565,0.0002867,2]
[424793933,1781167844000,-762.45,0.00019898,2]
[424793937,1781167844000,-961.0,0.00023389,7]
[424793940,1781167844000,-15783.92752478,0.0002867,2]
[424793939,1781167844000,-590.75782011,0.0002867,2]
[424793941,1781167844000,-396.67543,0.00019898,2]
[424793935,1781167844000,-762.45,0.00019898,2]
[424793975,1781167846000,-615.14,0.000285,30]
[424793973,1781167846000,-615.14,0.00028228,2]
[424793971,1781167846000,-615.14,0.00027955,7]
[424793972,1781167846000,-766.75,0.00028218,2]
[424793969,1781167846000,-615.14,0.00027683,30]
[424793970,1781167846000,-766.75,0.00027944,7]
[424793967,1781167846000,-650.0,0.00027137,2]
[424793964,1781167846000,-762.45,0.00025785,2]
[424793968,1781167846000,-766.75,0.00027671,30]
[424793965,1781167846000,-762.45,0.00025785,2]
[424793963,1781167846000,-762.45,0.00025785,2]
[424793960,1781167846000,-733.01509782,0.00022561,2]
[424793958,1781167846000,-762.45,0.00019999,2]
[424793959,1781167846000,-29.43490218,0.00022561,2]
[424793961,1781167846000,-460.65490218,0.00025785,2]
[424793962,1781167846000,-301.79509782,0.00025785,2]
[424793957,1781167846000,-365.77457,0.00019898,2]
[424793974,1781167846000,-766.75,0.00028492,30]
[424793966,1781167846000,-762.67353101,0.00025785,2]
[424793978,1781167846000,-3024.22645255,0.00028677,2]
[424793985,1781167846000,-642.89,0.0002871,2]
[424793977,1781167846000,-880.0,0.0002867,10]
[424793997,1781167846000,-303.64072728,0.0002874,7]
[424793992,1781167846000,-1117.55,0.0002871,2]
[424793976,1781167846000,-5049.18495632,0.0002867,2]
[424793993,1781167846000,-635.23,0.00028736,7]
[424793991,1781167846000,-2000.0,0.0002871,2]
[424793994,1781167846000,-637.0,0.00028739,3]
[424793995,1781167846000,-374.24449608,0.0002874,7]
[424793988,1781167846000,-2000.0,0.0002871,2]
[424793989,1781167846000,-2000.0,0.0002871,2]
[424793990,1781167846000,-1482.13,0.0002871,2]
[424793996,1781167846000,-347.8584105,0.0002874,7]
[424793986,1781167846000,-1517.87,0.0002871,2]
[424793982,1781167846000,-1556.79,0.0002871,2]
[424793980,1781167846000,-150.0,0.00028709,7]
[424793983,1781167846000,-1481.99,0.0002871,2]
[424793981,1781167846000,-2000.0,0.0002871,2]
[424793984,1781167846000,-3000.0,0.0002871,2]
[424793979,1781167846000,-336.88575774,0.00028677,2]
[424793987,1781167846000,-2000.0,0.0002871,2]
[424794010,1781167847000,-346.75715414,0.00028741,7]
[424794009,1781167847000,-306.09525379,0.00028741,7]
[424794020,1781167847000,-167.805,0.00028767,13]
[424794005,1781167847000,-431.87905576,0.00028741,7]
[424794004,1781167847000,-435.88158232,0.00028741,7]
[424794007,1781167847000,-396.02598026,0.00028741,7]
[424793998,1781167847000,-305.60207067,0.0002874,2]
[424794008,1781167847000,-325.01222263,0.00028741,7]
[424794003,1781167847000,-308.44735104,0.0002874,5]
[424794001,1781167847000,-310.54176147,0.0002874,7]
[424793999,1781167847000,-404.70955384,0.0002874,7]
[424794000,1781167847000,-242.16492509,0.0002874,7]
[424794002,1781167847000,-316.79859604,0.0002874,7]
[424794006,1781167847000,-357.55611263,0.00028741,7]
[424794012,1781167847000,-482.05554616,0.00028753,7]
[424794016,1781167847000,-874.78,0.0002876,7]
[424794013,1781167847000,-372.46815046,0.00028753,7]
[424794025,1781167847000,-155327.82970353,0.00028777,2]
[424794029,1781167847000,-318.58023944,0.00028777,2]
[424794027,1781167847000,-2688.6997364,0.00028777,2]
[424794022,1781167847000,-615.14,0.00028773,7]
[424794028,1781167847000,-586.92,0.00027671,2]
[424794026,1781167847000,-2127.21100843,0.00028777,2]
[424794024,1781167847000,-10939.2774334,0.00028777,2]
[424794011,1781167847000,-365.94280259,0.00028753,7]
[424794021,1781167847000,-940.2,0.00028773,7]
[424794017,1781167847000,-1043.58,0.00028766,7]
[424794018,1781167847000,-681.74,0.00028766,7]
[424794019,1781167847000,-766.75,0.00028766,7]
[424794014,1781167847000,-409.55379108,0.00028753,7]
[424794015,1781167847000,-486.51074607,0.00028753,7]
[424794023,1781167847000,-139209.4513328,0.00028777,2]
[424794037,1781168151000,5337.24280392,0.000226,120]
[424794038,1781168191000,49201.82765473,3.29e-06,14]
[424794039,1781168191000,20981.22993622,3.29e-06,14]
[424794040,1781168208000,3304.62850343,0.00028,120]
[424794050,1781168422000,151.103,0.00029863,120]
[424794081,1781168624000,275.0,0.00030137,120]
[424794082,1781168630000,2000.0,0.00030136,120]
[424794083,1781168670000,746.97,0.00030136,120]
[424794087,1781168854000,23632.46644387,0.0003,120]
[424794089,1781168868000,8722.56,0.0002963,120]
[424794111,1781168954000,388.61104204,0.0001,5]
[424794113,1781168965000,400.0,8.7e-05,3]
[424794114,1781168967000,900.0,8.8e-05,3]
[424794115,1781168969000,1400.0,8.9e-05,3]
[424794116,1781168971000,1900.0,9e-05,3]
[424794124,1781169032000,-741.00742991,8e-05,2]
[424794125,1781169032000,-296.06550867,8e-05,2]
[424794126,1781169032000,-250.0,8e-05,2]
[424794133,1781169032000,-300.69524485,8.8e-05,2]
[424794127,1781169032000,-150.0,8.001e-05,2]
[424794130,1781169032000,-250.0,8.8e-05,2]
[424794128,1781169032000,-215.95576085,8.053e-05,2]
[424794129,1781169032000,-1715.14287,8.756e-05,2]
[424794131,1781169032000,-193.0,8.8e-05,2]
[424794134,1781169032000,-305.4517413,8.939e-05,2]
[424794135,1781169032000,-323.93990001,8.939e-05,2]
[424794132,1781169032000,-250.0,8.8e-05,2]
[424794123,1781169032000,-525.79675041,8e-05,2]
[424794136,1781169032000,-370.60835869,8.939e-05,2]
[424794137,1781169032000,-150.0,8.939e-05,2]
[424794139,1781169032000,-485.4185,8.94e-05,2]
[424794159,1781169032000,-36846.53114859,8.94e-05,2]
[424794156,1781169032000,-4330.39483418,8.94e-05,2]
[424794153,1781169032000,-492.41777302,8.94e-05,2]
[424794163,1781169032000,-174444.08523916,8.94e-05,2]
[424794151,1781169032000,-1190.69306236,8.94e-05,2]
[424794161,1781169032000,-265285.95435834,8.94e-05,2]
[424794146,1781169032000,-348.50366075,8.94e-05,2]
[424794143,1781169032000,-5533.0,8.94e-05,2]
[424794140,1781169032000,-824.83,8.94e-05,2]
[424794141,1781169032000,-1482.28422149,8.94e-05,2]
[424794142,1781169032000,-251.28455264,8.94e-05,2]
[424794138,1781169032000,-5009.39164131,8.94e-05,2]
[424794148,1781169032000,-552.0,8.94e-05,2]
[424794198,1781169038000,-255.0,9.833e-05,2]
[424794196,1781169038000,-168.15,9.764e-05,2]
[424794194,1781169038000,-200.0,9.318e-05,2]
[424794195,1781169038000,-811.47,9.764e-05,2]
[424794197,1781169038000,-700.0,9.8e-05,3]
[424794201,1781169038000,-742.82,9.946e-05,2]
[424794207,1781169038000,-494.19944228,0.0001,2]
[424794199,1781169038000,-1400.0,9.9e-05,3]
[424794203,1781169038000,-1500000.0,9.999e-05,2]
[424794202,1781169038000,-29318.558,9.999e-05,2]
[424794204,1781169038000,-2500.0,0.0001,2]
[424794205,1781169038000,-2200.0,0.0001,3]
[424794193,1781169038000,-150.99,9.193e-05,2]
[424794200,1781169038000,-220.45,9.9e-05,2]
[424794191,1781169038000,-9503.14,9.07e-05,2]
[424794184,1781169038000,-1964084.73115144,8.94e-05,2]
[424794190,1781169038000,-500.0,9.043e-05,2]
[424794189,1781169038000,-1239.44014734,9.043e-05,2]
[424794188,1781169038000,-171.48663566,9.043e-05,2]
[424794187,1781169038000,-250.396,9.043e-05,2]
[424794186,1781169038000,-4671.945,9.043e-05,2]
[424794185,1781169038000,-20836.02307273,9.04e-05,2]
[424794182,1781169038000,-2151.0,8.94e-05,2]
[424794183,1781169038000,-29383.13224529,8.94e-05,2]
[424794181,1781169038000,-452.91970207,8.94e-05,2]
[424794180,1781169038000,-5096.0947088,8.94e-05,2]
[424794179,1781169038000,-459.86242947,8.94e-05,2]
[424794177,1781169038000,-768.96732975,8.94e-05,2]
[424794178,1781169038000,-526.50344134,8.94e-05,2]
[424794208,1781169038000,-494.19944228,0.0001,2]
[424794192,1781169038000,-1577.76,9.193e-05,2]
[424794206,1781169038000,-2400.0,0.0001,3]
[424794226,1781169038000,-1531.77123695,0.00010429,2]
[424794210,1781169038000,-151.0,0.00010097,2]
[424794212,1781169038000,-1574168.70632842,0.000101,2]
[424794250,1781169038000,-1531.77123695,0.00010826,2]
[424794252,1781169038000,-1531.77123695,0.00010863,2]
[424794251,1781169038000,-1531.77123695,0.00010845,2]
[424794249,1781169038000,-433.0,0.00010816,2]
[424794244,1781169038000,-226.36768143,0.00010726,2]
[424794247,1781169038000,-1531.77123695,0.00010786,2]
[424794245,1781169038000,-1531.77123695,0.00010743,2]
[424794248,1781169038000,-1531.77123695,0.00010806,2]
[424794246,1781169038000,-1531.77123695,0.00010765,2]
[424794243,1781169038000,-150.0,0.00010726,2]
[424794238,1781169038000,-1531.77123695,0.00010646,2]
[424794239,1781169038000,-1531.77123695,0.00010672,2]
[424794242,1781169038000,-150.0,0.00010726,2]
[424794241,1781169038000,-1531.77123695,0.00010721,2]
[424794254,1781169038000,-1531.77123695,0.00010898,2]
[424794235,1781169038000,-1531.77123695,0.00010588,2]
[424794240,1781169038000,-1531.77123695,0.00010697,2]
[424794213,1781169038000,-1145.7364696,0.000101,2]
[424794211,1781169038000,-250.0,0.00010099,2]
[424794253,1781169038000,-1531.77123695,0.00010881,2]
[424794215,1781169038000,-9363.91,0.00010114,2]
[424794217,1781169038000,-1531.77123695,0.00010211,2]
[424794209,1781169038000,-170.74865144,0.0001005,2]
[424794222,1781169038000,-6579.65,0.00010326,2]
[424794224,1781169038000,-1531.77123695,0.00010365,2]
[424794237,1781169038000,-1531.77123695,0.00010618,2]
[424794228,1781169038000,-1531.77123695,0.00010477,2]
[424794232,1781169038000,-1531.77123695,0.00010555,2]
[424794220,1781169038000,-79722.96482553,0.000103,2]
[424794230,1781169038000,-1531.77123695,0.00010519,2]
[424794293,1781169039000,-1531.77123695,0.00011195,2]
[424794291,1781169039000,-166.66,0.00011178,2]
[424794290,1781169039000,-1531.77123695,0.0001117,2]
[424794292,1781169039000,-1531.77123695,0.00011183,2]
[424794288,1781169039000,-1531.77123695,0.00011146,2]
[424794285,1781169039000,-1531.77123695,0.00011107,2]
[424794287,1781169039000,-1531.77123695,0.00011133,2]
[424794284,1781169039000,-2721.80380729,0.00011099,2]
[424794298,1781169039000,-1531.77123695,0.00011242,2]
[424794286,1781169039000,-1531.77123695,0.0001112,2]
[424794294,1781169039000,-250.31279834,0.000112,2]
[424794297,1781169039000,-1531.77123695,0.0001123,2]
[424794305,1781169039000,-166.66,0.00011507,2]
[424794296,1781169039000,-1531.77123695,0.00011218,2]
[424794299,1781169039000,-1531.77123695,0.00011253,2]
[424794300,1781169039000,-1531.77123695,0.00011264,2]
[424794301,1781169039000,-500.0,0.00011274,2]
[424794302,1781169039000,-166.66,0.00011288,2]
[424794304,1781169039000,-2523.04654814,0.000114,2]
[424794303,1781169039000,-166.66,0.00011397,2]
[424794309,1781169039000,-500.0,0.00011822,2]
[424794310,1781169039000,-736.0,0.00011898,2]
[424794307,1781169039000,-2721.80380729,0.00011633,2]
[424794289,1781169039000,-1531.77123695,0.00011158,2]
[424794295,1781169039000,-1531.77123695,0.00011207,2]
[424794280,1781169039000,-1531.77123695,0.0001108,2]
[424794266,1781169039000,-500.0,0.00010958,2]
[424794283,1781169039000,-2721.80380729,0.00011099,2]
[424794255,1781169039000,-1145.73646957,0.000109,2]
[424794256,1781169039000,-2523.04654821,0.000109,2]
[424794258,1781169039000,-1531.77123695,0.00010915,2]
[424794259,1781169039000,-1531.77123695,0.00010932,2]
[424794257,1781169039000,-2523.04654814,0.000109,2]
[424794263,1781169039000,-500.0,0.00010958,2]
[424794267,1781169039000,-500.0,0.00010958,2]
[424794261,1781169039000,-500.0,0.00010958,2]
[424794262,1781169039000,-500.0,0.00010958,2]
[424794265,1781169039000,-500.0,0.00010958,2]
[424794264,1781169039000,-500.0,0.00010958,2]
[424794308,1781169039000,-1145.73646957,0.000117,2]
[424794268,1781169039000,-166.66,0.00010959,2]
[424794269,1781169039000,-1531.77123695,0.00010964,2]
[424794270,1781169039000,-1531.77123695,0.00010979,2]
[424794271,1781169039000,-1531.77123695,0.00010994,2]
[424794272,1781169039000,-1139.2058849,0.00011,2]
[424794274,1781169039000,-1531.77123695,0.00011009,2]
[424794277,1781169039000,-1531.77123695,0.00011053,2]
[424794276,1781169039000,-1531.77123695,0.00011038,2]
[424794275,1781169039000,-1531.77123695,0.00011024,2]
[424794278,1781169039000,-1531.77123695,0.00011066,2]
[424794273,1781169039000,-500.0,0.00011,2]
[424794279,1781169039000,-166.66,0.00011068,2]
[424794281,1781169039000,-1531.77123695,0.00011094,2]
[424794282,1781169039000,-2721.80380734,0.00011099,2]
[424794306,1781169039000,-500.0,0.00011548,2]
[424794260,1781169039000,-1531.77123695,0.00010948,2]
[424794312,1781169039000,-903.33759387,0.00012,2]
[424794344,1781169039000,-5426.07150161,0.0001305,2]
[424794345,1781169039000,-400.0,0.00013073,2]
[424794341,1781169039000,-5688.93883939,0.00013,2]
[424794346,1781169039000,-555.0,0.00013087,2]
[424794347,1781169039000,-2721.80380729,0.00013267,2]
[424794350,1781169039000,-150.0,0.00013424,2]
[424794349,1781169039000,-150.0,0.00013424,2]
[424794351,1781169039000,-188.15521262,0.00013424,2]
[424794348,1781169039000,-1145.73646957,0.000133,2]
[424794352,1781169039000,-216.316805,0.00013424,2]
[424794354,1781169039000,-203.85144979,0.00013488,2]
[424794355,1781169039000,-1000.0,0.000135,2]
[424794356,1781169039000,-2523.04654814,0.000135,2]
[424794358,1781169039000,-500.0,0.00013698,2]
[424794357,1781169039000,-1500.0,0.00013568,2]
[424794353,1781169039000,-150.0,0.00013488,2]
[424794359,1781169039000,-500.0,0.00013698,2]
[424794362,1781169039000,-500.0,0.00013698,2]
[424794361,1781169039000,-500.0,0.00013698,2]
[424794360,1781169039000,-500.0,0.00013698,2]
[424794364,1781169039000,-500.0,0.00013698,2]
[424794363,1781169039000,-500.0,0.00013698,2]
[424794366,1781169039000,-500.0,0.00013698,2]
[424794367,1781169039000,-500.0,0.00013698,2]
[424794311,1781169039000,-1239.44014733,0.00011922,2]
[424794343,1781169039000,-199.5,0.00013001,2]
[424794340,1781169039000,-503.27053058,0.00012918,2]
[424794365,1781169039000,-412.6518502,0.00013698,2]
[424794336,1781169039000,-500.0,0.00012644,2]
[424794342,1781169039000,-447.2388317,0.00013,5]
[424794315,1781169039000,-151.0,0.00012068,2]
[424794317,1781169039000,-500.0,0.00012096,2]
[424794316,1781169039000,-151.0,0.00012068,2]
[424794314,1781169039000,-151.0,0.00012068,2]
[424794319,1781169039000,-2721.80380729,0.00012178,2]
[424794318,1781169039000,-2523.04654814,0.000121,2]
[424794313,1781169039000,-151.0,0.00012068,2]
[424794323,1781169039000,-311.9669302,0.000125,2]
[424794321,1781169039000,-165.78,0.00012329,2]
[424794322,1781169039000,-500.0,0.0001237,2]
[424794325,1781169039000,-1145.73646957,0.000125,2]
[424794324,1781169039000,-307.5643183,0.000125,2]
[424794320,1781169039000,-35778.11752601,0.000123,2]
[424794328,1781169039000,-170.74865145,0.00012577,2]
[424794339,1781169039000,-2900.0,0.000129,4]
[424794326,1781169039000,-10000.0,0.0001254,2]
[424794338,1781169039000,-2523.04654814,0.000128,2]
[424794335,1781169039000,-500.0,0.0001264,2]
[424794333,1781169039000,-500.0,0.0001264,2]
[424794337,1781169039000,-2721.80380729,0.00012722,2]
[424794331,1781169039000,-500.0,0.0001264,2]
[424794334,1781169039000,-500.0,0.0001264,2]
[424794332,1781169039000,-500.0,0.0001264,2]
[424794329,1781169039000,-745.81400058,0.000126,2]
[424794327,1781169039000,-2252.0,0.00012548,2]
[424794330,1781169039000,-500.0,0.0001264,2]
[424794408,1781169040000,-500.0,0.00013698,2]
[424794411,1781169040000,-185.12,0.00013699,2]
[424794412,1781169040000,-154.27,0.00013699,2]
[424794406,1781169040000,-500.0,0.00013698,2]
[424794398,1781169040000,-500.0,0.00013698,2]
[424794407,1781169040000,-500.0,0.00013698,2]
[424794404,1781169040000,-500.0,0.00013698,2]
[424794402,1781169040000,-500.0,0.00013698,2]
[424794401,1781169040000,-500.0,0.00013698,2]
[424794405,1781169040000,-500.0,0.00013698,2]
[424794410,1781169040000,-222.15,0.00013699,2]
[424794425,1781169040000,-278.60891467,0.000137,2]
[424794417,1781169040000,-2000.0,0.00013699,7]
[424794423,1781169040000,-150.0,0.000137,2]
[424794415,1781169040000,-188.14874168,0.00013699,10]
[424794419,1781169040000,-503.34,0.000137,2]
[424794413,1781169040000,-771.36,0.00013699,2]
[424794421,1781169040000,-150.0,0.000137,2]
[424794422,1781169040000,-150.0,0.000137,2]
[424794424,1781169040000,-150.0,0.000137,2]
[424794428,1781169040000,-239.417256,0.00013814,2]
[424794426,1781169040000,-176.47,0.00013734,2]
[424794427,1781169040000,-2721.80380729,0.00013811,2]
[424794399,1781169040000,-500.0,0.00013698,2]
[424794409,1781169040000,-200.0,0.00013699,2]
[424794400,1781169040000,-500.0,0.00013698,2]